Cogmind - Beta 14 @@@ ROGUE MODE // 2024.11.20 @ 15:29:59 Player: Fangrelle Result: Destroyed by H-61 Shepherd with Heavy Assault Cannon Performance ------------- Evolutions (2) 1000 Regions Visited (5) 1000 Robots Destroyed (107) 535 Value Destroyed (2769) 2769 Prototype IDs (28) 560 Alien Tech Used (0) 0 Bonus (648) 648 TOTAL SCORE: 6512 Bonus ------- High Alert Combat Kills 298 Follower Combat Kills 50 Aligned with FarCom 300 Cogmind --------- Core Integrity 0/550 Matter 213/300 Energy 240/240 System Corruption 5% Temperature Cool (-100) Movement Walking (330) Ox3 Location -8/Materials Parts ------- > --- POWER (1) -------- Nuclear Core > --- PROPULSION (2) --- Carbon-fiber Leg Carbon-fiber Leg (fused) > --- UTILITY (4) ------ Cryofiber Web Huge Storage Unit Improved Targeting Computer > --- WEAPON (4) ------- Improved Light Cannon Katana Katana > --- INVENTORY (25) --- Improved Ion Engine Armored Treads Armored Treads Heat Sink High-capacity Storage Unit Humpback High-capacity Matter Pod (0) Makeshift Terrain Scanner Melee Analysis Suite Authchip [R/Combat] Beam Rifle Faulty Precision Beam Rifle Faulty Enhanced Autogun Faulty Enhanced Autogun Enhanced Autogun XL Autogun Array Bore Cannon Grenade Launcher Rocket Launcher Improved Datajack Mining Laser Peak State ------------ > --- POWER ------------ Improved Ion Engine > --- PROPULSION ------- Carbon-fiber Leg Carbon-fiber Leg > --- UTILITY ---------- Heat Sink Huge Storage Unit Improved Targeting Computer > --- WEAPON ----------- XL Autogun Array > --- INVENTORY -------- Armored Treads Armored Treads High-capacity Storage Unit Humpback High-capacity Matter Pod Makeshift Terrain Scanner Melee Analysis Suite Authchip [R/Combat] Beam Rifle Particle Gun Precision Beam Rifle Enhanced Autogun Enhanced Autogun Bore Cannon Grenade Launcher Rocket Launcher Improved Datajack Mining Laser Katana [Rating: 53] Favorites ----------- Power Light Ion Engine Engine Light Ion Engine Power Core Light Nuclear Core Propulsion Improved Treads Treads Improved Treads Leg Carbon-fiber Leg Wheel Wheel Utility Huge Storage Unit Device Shield Generator Storage Huge Storage Unit Processor Improved Targeting Computer Protection Hardened Light Armor Plating Weapon Heavy EM Pulse Gun Energy Gun Heavy EM Pulse Gun Ballistic Gun Heavy Assault Rifle Ballistic Cannon Assault Cannon Launcher Grenade Launcher Slashing Weapon Katana Build | -11 -10 -10 -10 -9 -8 ------- Run | Yrd Mat Min Exi Min Mat Slots Evolved 4 | . . . . . 4 Power . | . . . . . . Propulsion . | . . . . . . Utility 2 | . . . . . 2 Weapon 2 | . . . . . 2 Parts Attached 101 | . 6 2 3 4 86 Power 15 | . . 1 . 1 13 Engine 9 | . . 1 . 1 7 Core 6 | . . . . . 6 Reactor . | . . . . . . Propulsion 25 | . 2 . 2 2 19 Treads 12 | . 2 . 1 2 7 Leg 6 | . . . . . 6 Wheel 7 | . . . 1 . 6 Hover . | . . . . . . Flight . | . . . . . . Utility 27 | . 2 . 1 . 24 Device 9 | . . . . . 9 Storage 4 | . 1 . 1 . 2 Processor 1 | . . . . . 1 Hackware . | . . . . . . Protection 13 | . 1 . . . 12 Artifact . | . . . . . . Weapon 34 | . 2 1 . 1 30 Energy Gun 15 | . 2 1 . 1 11 Energy Cannon . | . . . . . . Ballistic Gun 12 | . . . . . 12 Ballistic Cannon 3 | . . . . . 3 Launcher 2 | . . . . . 2 Special Weapon . | . . . . . . Impact Weapon . | . . . . . . Slashing Weapon 2 | . . . . . 2 Piercing Weapon . | . . . . . . Special Melee Weapon . | . . . . . . Unidentified Prototypes 5 | . . . . . 5 Parts Lost 36 | . 1 1 . 1 33 Power 5 | . 1 . . . 4 Propulsion 6 | . . . . . 6 Utility 14 | . . . . . 14 Weapon 11 | . . 1 . 1 9 Highest Loss Streak 8 | . 1 1 . 1 8 To Critical Strikes . | . . . . . . Average Slot Usage (%) 88 | . 96 97 88 84 81 Engine 10 | . 12 11 14 14 3 Core 1 | . . . . . 4 Treads 21 | . 21 28 27 27 10 Leg 2 | . 6 . . . 5 Device 2 | . . . . . 7 Storage 12 | . 16 14 13 14 9 Protection 7 | . 9 14 3 . 10 Energy Gun 23 | . 24 27 28 27 13 Ballistic Gun 2 | . 3 . . . 6 Ballistic Cannon 1 | . . . . . 3 Peak Build Rating 53 | . 14 15 19 21 53 Average Rating 20 | . 11 14 15 20 29 On Entrance 13 | 6 6 13 15 18 21 Naked Turns . | . . . . . . Heaviest Build 284 | 11 94 94 209 213 284 Greatest Support 46 | 20 46 46 46 46 46 Greatest Overweight (x) 68 | . 4 2 13 9 68 Average Overweight (x) 3 | . 1 1 3 4 3 Largest Inventory Capacity 35 | . 25 25 35 35 35 Average Capacity 29 | . 24 25 31 35 28 Most Carried 35 | . 19 21 33 35 35 Average Carried 25 | . 12 19 25 34 25 Final Capacity 35 | 8 25 25 35 35 25 Final Carried 35 | 6 19 20 33 35 25 Class Distribution -------------------- 45% | Hauler-Mutant 35% | Mutant 10% | Scavenger-Tank 3% | Scavenger-Skirmisher 3% | Scavenger-Mutant Dominant Class ---------------- Mutant | -10/Materials Mutant | -10/Mines Hauler-Mutant | -10/Exiles Hauler-Mutant | -9/Mines Scavenger-Tank | -8/Materials Resources | -11 -10 -10 -10 -9 -8 ----------- Run | Yrd Mat Min Exi Min Mat Matter Collected 2330 | 200 60 20 . 63 1987 Remotely 292 | . . . . . 292 Salvage Created 3783 | . 564 592 . 153 2474 Parts 205 | . 29 34 . 18 124 Haulers Intercepted 5 | . 1 . . . 4 Recyclers Shooed 2 | . . . . . 2 Parts Field Recycled . | . . . . . . Retrieved Matter . | . . . . . . Parts Self-Destructed . | . . . . . . Prevented . | . . . . . . Kills | -11 -10 -10 -10 -9 -8 ------- Run | Yrd Mat Min Exi Min Mat Combat Hostiles Destroyed 83 | . 9 15 . 9 50 Melee 3 | . . . . . 3 Guns 61 | . 7 13 . 9 32 Cannons 12 | . . . . . 12 AOE 6 | . 2 1 . . 3 Classes Destroyed 12 | . 6 1 . . 5 Worker 6 | . 3 2 . . 1 Builder 2 | . . . . . 2 Tunneler 3 | . . 2 . . 1 Hauler 5 | . 1 . . . 4 Recycler 5 | . 3 . . . 2 Operator 1 | . . . . . 1 Watcher 5 | . 2 . . . 3 Swarmer 28 | . 6 3 . 9 10 Grunt 40 | . 3 12 . . 25 Brawler 1 | . . . . . 1 Duelist 5 | . . . . . 5 Sentry 9 | . . . . . 9 Best Kill Streak 9 | . 6 4 . 6 9 Combat Bots Only 6 | . 3 3 . 6 6 Max Kills in Single Turn 3 | . 3 1 . 2 2 Gunslinging 1 | . . . . 1 1 Exploded 1 | . 1 1 . . 1 Melee 1 | . . . . . 1 Uniques/NPCs Destroyed . | . . . . . . Combat | -11 -10 -10 -10 -9 -8 -------- Run | Yrd Mat Min Exi Min Mat Hostile Shots Fired 566 | . 28 48 . 29 461 Missed 132 | . 8 13 . 9 102 Damage Taken 5927 | . 268 392 . 152 5115 Core 722 | . 43 40 . 45 594 Absorbed by Shields 414 | . . . . . 414 Core Remaining (%) 74 | 100 . . . 48 . Volleys Fired 245 | . 21 26 . 10 188 Largest 4 | . 2 2 . 2 4 Hottest 205 | . 90 90 . 90 205 Shots Fired 492 | . 42 51 . 18 381 Gun 430 | . 42 51 . 18 319 Cannon 58 | . . . . . 58 Launcher 4 | . . . . . 4 Special . | . . . . . . Kinetic 234 | . . . . . 234 Thermal 135 | . . . . . 135 Explosive 4 | . . . . . 4 Electromagnetic 119 | . 42 51 . 18 8 Robot Hit Streak 17 | . 5 8 . 6 17 Robot Miss Streak 5 | . 3 4 . 2 5 Penetration Max 1 | . . . . . 1 Secondary Targets 8 | . . . . 4 4 Max Gunslinging Chain 1 | . . . . 1 1 Shots Hit Robots 317 | . 21 29 . 14 253 Core Hits 167 | . 20 18 . 10 119 Critical Kills . | . . . . . . Critical Parts Destroyed 2 | . . . . . 2 Critical Strikes 10 | . 1 . . 1 8 Burn 5 | . . . . . 5 Destroy 2 | . . . . . 2 Blast 1 | . . . . . 1 Corrupt 2 | . 1 . . 1 . Melee Attacks 10 | . . . . . 10 Impact . | . . . . . . Slashing 10 | . . . . . 10 Piercing . | . . . . . . Sneak Attacks . | . . . . . . Combat Hostiles . | . . . . . . Follow-up Attacks 1 | . . . . . 1 Damage Inflicted 7520 | . 861 633 . 202 5824 Guns 5451 | . 392 498 . 192 4369 Cannons 950 | . . . . . 950 Explosions 935 | . 469 89 . . 377 Melee 97 | . . . . . 97 Ramming 87 | . . 46 . 10 31 Kinetic 3738 | . . . . . 3738 Thermal 1899 | . 120 89 . . 1690 Explosive 562 | . 349 . . . 213 Electromagnetic 1137 | . 392 498 . 192 55 Impact . | . . . . . . Slashing 97 | . . . . . 97 Piercing . | . . . . . . Highest Corruption 5 | . . . . . 5 Average Corruption 5 | . . . . . 5 Corruption Purged . | . . . . . . Corruption Blocked . | . . . . . . Effects 21 | . . . . . 21 Message Errors 4 | . . . . . 4 Matter Fused 1 | . . . . . 1 Heat Flow Errors 7 | . . . . . 7 Energy Discharges 3 | . . . . . 3 Parts Fused 1 | . . . . . 1 Data Loss (minor) 1 | . . . . . 1 Data Loss (major) 2 | . . . . . 2 Alerts 1 | . . . . . 1 Weapon Failures 1 | . . . . . 1 Overload Shots . | . . . . . . Overflow Damage 71 | . 36 . . . 35 Projectiles . | . . . . . . Explosions 69 | . 36 . . . 33 Melee 2 | . . . . . 2 Knockbacks 8 | . . 1 . . 7 Impact 1 | . . 1 . . . Kinetic 7 | . . . . . 7 Secondary . | . . . . . . Self-Inflicted Damage 241 | . 97 5 . . 139 Shots 8 | . 2 1 . . 5 Rammed 13 | . . 8 . 2 3 Targets Rammed 19 | . 1 11 . 2 5 Kicked . | . . . . . . Crushed 6 | . 1 3 . . 2 Highest Temperature 545 | . 180 231 . 132 545 Average Temperature 134 | . 59 71 . 57 166 Received Heat Transfer 2497 | . 24 201 . . 2272 Effects 29 | . . . . . 29 Shutdowns 5 | . . . . . 5 Energy Bleed 2 | . . . . . 2 Interference 4 | . . . . . 4 Matter Decay 3 | . . . . . 3 Short Circuit 5 | . . . . . 5 Damage (minor) 2 | . . . . . 2 Damage (major) 8 | . . . . . 8 Siege Activations . | . . . . . . Robots Corrupted 1 | . . 1 . . . Combat Hostiles 1 | . . 1 . . . Parts Fried 4 | . 1 2 . 1 . Impact Corruptions 1 | . . . . . 1 Robots Melted 1 | . . . . . 1 Combat Hostiles . | . . . . . . Parts Melted 7 | . 1 . . . 6 Heat Transferred 4313 | . 300 150 . . 3863 Parts Sabotaged . | . . . . . . Parts Stolen . | . . . . . . Parts Stripped . | . . . . . . Power Chain Reactions 5 | . 3 1 . . 1 Alert | -11 -10 -10 -10 -9 -8 ------- Run | Yrd Mat Min Exi Min Mat Peak Influence 966 | . 262 231 . 170 966 Initial 102 | . . 102 . . 3 Average 146 | . 53 64 . 30 317 Maximum Alert Level 3 | . 1 1 . . 3 Low Security (%) 77 | . 89 95 . 100 46 Level 1 11 | . 10 4 . . 23 Level 2 3 | . . . . . 8 Level 3 7 | . . . . . 21 Level 4 . | . . . . . . Level 5 . | . . . . . . High Security . | . . . . . . Max Security . | . . . . . . Sterilizations 1 | . . . . . 1 Squads Dispatched 12 | . 1 . . . 11 Investigation 2 | . 1 . . . 1 Extermination . | . . . . . . Reinforcement 1 | . . . . . 1 Assault 3 | . . . . . 3 Garrison 6 | . . . . . 6 Intercept . | . . . . . . Searches Triggered . | . . . . . . Construction Impeded . | . . . . . . Haulers Reinforced . | . . . . . . Active Scanning Responses . | . . . . . . Cargo Convoy Interrupts . | . . . . . . Stealth | -11 -10 -10 -10 -9 -8 --------- Run | Yrd Mat Min Exi Min Mat Distress Signals 5 | . . 1 . . 4 Communications Jammed . | . . . . . . Distress Signals . | . . . . . . Times Spotted 110 | . 13 16 . 8 73 Peak Tracking Total 10 | . 3 3 . 5 10 Tactical Retreats 8 | . 2 . . . 6 Traps | -11 -10 -10 -10 -9 -8 ------- Run | Yrd Mat Min Exi Min Mat Traps Triggered 1 | . . . . . 1 Indirectly . | . . . . . . Trap Hack Attempts . | . . . . . . Triggered . | . . . . . . Disarmed . | . . . . . . Reprogrammed . | . . . . . . Reused . | . . . . . . Traps Extracted . | . . . . . . Installed 3 | . . . . . 3 Triggered . | . . . . . . Most Traps Carried 3 | . . . . 3 3 Machines | -11 -10 -10 -10 -9 -8 ---------- Run | Yrd Mat Min Exi Min Mat Machines Disabled 6 | . 1 . 1 2 2 Max in Single Turn 2 | . 1 . . 2 1 Machines Repaired . | . . . . . . Machines Dismantled . | . . . . . . Machines Sabotaged . | . . . . . . Overloaded Fab Kills . | . . . . . . Hacking | -11 -10 -10 -10 -9 -8 --------- Run | Yrd Mat Min Exi Min Mat Machines Accessed 13 | . 7 . 2 . 4 Terminals 9 | . 6 . . . 3 Fabricators . | . . . . . . Repair Stations . | . . . . . . Recycling Units 2 | . 1 . . . 1 Scanalyzers . | . . . . . . Garrison Access . | . . . . . . Total Hacks 59 | . 30 . 5 . 24 Successful 32 | . 16 . 5 . 11 Failed 27 | . 14 . . . 13 Catastrophic 3 | . 2 . . . 1 Database Lockouts . | . . . . . . Manual 50 | . 29 . 1 . 20 Terminals 46 | . 27 . . . 19 Fabricators . | . . . . . . Repair Stations . | . . . . . . Recycling Units 8 | . 3 . . . 5 Scanalyzers . | . . . . . . Garrison Access . | . . . . . . Terminal Hacks 7 | . 2 . 5 . . Record 4 | . . . 4 . . Robot Analysis 2 | . 2 . . . . Derelict Proto ID Bank 1 | . . . 1 . . Fabricator Hacks . | . . . . . . Repair Station Hacks . | . . . . . . Recycling Unit Hacks . | . . . . . . Scanalyzer . | . . . . . . Garrison Access Hacks . | . . . . . . Unauthorized Hacks 25 | . 14 . . . 11 Terminals 23 | . 13 . . . 10 Assimilate 6 | . 3 . . . 3 Botnet 9 | . 6 . . . 3 Operators 2 | . 1 . . . 1 Skim 6 | . 3 . . . 3 Fabricators . | . . . . . . Repair Stations . | . . . . . . Recycling Units 2 | . 1 . . . 1 Tunnel 2 | . 1 . . . 1 Scanalyzers . | . . . . . . Garrison Access . | . . . . . . Data Cores Recovered . | . . . . . . Used . | . . . . . . Hacking Detections 11 | . 7 . . . 4 Full Trace Events . | . . . . . . Feedback Events . | . . . . . . Feedback Blocked . | . . . . . . Robot Schematics Acquired . | . . . . . . Robots Built . | . . . . . . Authchips . | . . . . . . Time . | . . . . . . Total Robot Build Rating . | . . . . . . Part Schematics Acquired . | . . . . . . Parts Built . | . . . . . . Authchips . | . . . . . . Time . | . . . . . . Total Part Build Rating . | . . . . . . Parts Repaired . | . . . . . . Time . | . . . . . . Parts Recycled . | . . . . . . Recycled Matter . | . . . . . . Retrieved Matter . | . . . . . . Retrieved Components . | . . . . . . Parts Scanalyzed . | . . . . . . Part Schematics Acquired . | . . . . . . Parts Damaged . | . . . . . . Bothacking | -11 -10 -10 -10 -9 -8 ------------ Run | Yrd Mat Min Exi Min Mat Used RIF Installer . | . . . . . . Robots Hacked . | . . . . . . Non-combat . | . . . . . . Combat . | . . . . . . Robot Hacks Applied . | . . . . . . Relay Couplers Released . | . . . . . . Fabnet Peak Effective % . | . . . . . . Robots Rewired . | . . . . . . Allies Hacked . | . . . . . . Hacks Repelled . | . . . . . . Allies | -11 -10 -10 -10 -9 -8 -------- Run | Yrd Mat Min Exi Min Mat Total Allies 3 | . . 3 . . . Largest Group 3 | . . 3 3 . . Highest-Rated Group 40 | . . 40 40 . . Highest-Rated Ally 16 | . . 16 16 . . Total Orders 1 | . . . 1 . . STAY 1 | . . . 1 . . Ally Attacks 14 | . . 10 4 . . Total Damage 107 | . . 79 28 . . Kills 2 | . . 2 . . . Allies Corrupted . | . . . . . . Allies Melted . | . . . . . . Intel | -11 -10 -10 -10 -9 -8 ------- Run | Yrd Mat Min Exi Min Mat Robot Analysis Total 2 | . 2 . . . . Derelict Logs Recovered 3 | . . 1 . 2 . Drone Launches . | . . . . . . Drone Recoveries . | . . . . . . Exploration | -11 -10 -10 -10 -9 -8 ------------- Run | Yrd Mat Min Exi Min Mat Turns Passed 13762 | . 1537 2376 2271 3361 4217 Spaces Moved 3193 | 1 497 623 552 686 834 Core 2 | . . . . . 2 Treads 2685 | . 366 623 521 686 489 Legs 426 | 1 131 . . . 294 Wheels 80 | . . . 31 . 49 Hover . | . . . . . . Flight . | . . . . . . Fastest Speed 120 | 120 120 240 160 480 140 Average Speed 374 | 120 288 316 405 482 359 Slowest Speed 3450 | 120 400 320 480 880 3450 Overloaded Moves . | . . . . . . Propulsion Burnouts . | . . . . . . Robots Hopped . | . . . . . . Cave-ins Triggered . | . . . . . . Exploration Rate (%) 67 | 2 75 98 70 98 64 Regions Visited 5 Branch Regions 3 Pre-discovered Areas 4 | . 1 1 1 . 1 Known Exits Taken . | . . . . . . Unknown Exits Taken 5 | 1 1 1 1 1 . Scrap Searched 5 | . . 2 . 3 . Spaces Dug 5 | . . . . . 5 Terrain Destroyed 92 | . 20 3 . 10 59 Melee 5 | . . . . . 5 Projectile 16 | . . . . . 16 AOE 71 | . 20 3 . 10 38 Terrain Rammed . | . . . . . . Walls Destroyed . | . . . . . . Machines Disabled . | . . . . . . Actions | -11 -10 -10 -10 -9 -8 --------- Run | Yrd Mat Min Exi Min Mat Total 4583 | . 558 954 591 721 1759 Wait 846 | . 12 289 . . 545 Move 3188 | . 496 622 551 685 834 Hop . | . . . . . . Pick Up 86 | . 15 3 27 11 30 Fast Attach 44 | . 5 1 1 . 37 Attach 36 | . . 1 . 1 34 Detach 13 | . . . . . 13 Swap 21 | . 1 . 2 3 15 Drop 73 | . 7 1 10 9 46 Fire 245 | . 21 26 . 10 188 Melee 9 | . . . . . 9 Ram . | . . . . . . Kick . | . . . . . . Crush 19 | . 1 11 . 2 5 Escape Stasis . | . . . . . . Rewire . | . . . . . . Trap 3 | . . . . . 3 Miscellaneous . | . . . . . . Route ------- -11/Scrapyard -10/Materials (discovered 3 exits: [*Mat x2] / [*Min]) -10/Mines (discovered 3 exits: [*Mat x2] / *Exi) -10/Exiles -9/Mines (discovered 2 exits: *Mat x2) -8/Materials (discovered 2 exits: *Fac / *Sto) History --------- Turn | Location | Event 1 | -11/Scrapyard | Discovered new exit (range 0) 1 | -11/Scrapyard | Entered Materials 304 | -10/Materials | Build established: Mutant 877 | -10/Materials | Discovered new exit (range 5) 1284 | -10/Materials | Discovered new exit (range 16) 1462 | -10/Materials | Discovered new exit (range 14) 1538 | -10/Materials | Entered Mines 1574 | -10/Mines | Excavation squad dispatched 1574 | -10/Mines | A large section of the Mines collapsed 1824 | -10/Mines | Excavation squad dispatched 1970 | -10/Mines | Assisted by bots powering up and referring to "LRC-V3" 2074 | -10/Mines | Excavation squad dispatched 2262 | -10/Mines | Discovered new exit (range 7) 2540 | -10/Mines | Learned Materials terminal intel 2592 | -10/Mines | Deemed a non-threat by the Exiles lab entrance 2592 | -10/Mines | Discovered new exit (range 5) 3062 | -10/Mines | Discovered new exit (range 9) 3066 | -10/Mines | Learned location of Storage (-8) 3515 | -10/Mines | A weapon hastily lodged in a ceiling crevice suddenly fell to the ground 3914 | -10/Mines | Entered Exiles 3914 | -10/Exiles | Accompanied by 3 allies 4004 | -10/Exiles | Met 8R-AWN 4049 | -10/Exiles | Met EX-HEX 4202 | -10/Exiles | Met EX-DEC 4815 | -10/Exiles | Learned location of Zion (-7) 4863 | -10/Exiles | Build established: Hauler-Mutant 5571 | -10/Exiles | Met EX-BIN 5624 | -10/Exiles | Aligned with FarCom system 5628 | -10/Exiles | Given EX-Vault access code 5739 | -10/Exiles | Opened EX-Vault 5792 | -10/Exiles | Found XL Autogun Array 5889 | -10/Exiles | Warned to stay clear of 0b10 Research branches 5933 | -10/Exiles | Exiles lab attacked by MAIN.C 6101 | -10/Exiles | Lost 3 allies 6159 | -10/Exiles | Discovered new exit (range 11) 6185 | -10/Exiles | Left Exiles lab with XL Autogun Array 6185 | -10/Exiles | Entered Mines 6400 | -9/Mines | Found a hidden stash of uninstalled traps 6503 | -9/Mines | Received a Rocket Launcher from a helpful Derelict 6695 | -9/Mines | Discovered new exit (range 11) 7334 | -9/Mines | Learned location of 1 exit from Materials 7660 | -9/Mines | Learned location of 1 exit from Materials 8699 | -9/Mines | Core integrity fell below 50% 8715 | -9/Mines | Discovered new exit (range 14) 9546 | -9/Mines | Entered Materials 9546 | -8/Materials | Evolved 4 slots: Utility x2, Weapon x2 9547 | -8/Materials | Identified exit to Storage 9547 | -8/Materials | Identified exit to Factory 9548 | -8/Materials | Loaded intel: 12 terminal locations 10213 | -8/Materials | Lost 8 parts (2n2u4w) 10598 | -8/Materials | Lost 7 parts (1p2n3u1w) 11009 | -8/Materials | Lost 6 parts (2p1n2u1w) 11020 | -8/Materials | Core integrity fell below 50% 11070 | -8/Materials | Lost 3 parts (1n2u) 11446 | -8/Materials | Build established: Scavenger-Skirmisher 11944 | -8/Materials | Build established: Scavenger-Tank 12210 | -8/Materials | Garrison activated, responded to threat 12635 | -8/Materials | Garrison activated, responded to threat 12746 | -8/Materials | First assault squad dispatched 13188 | -8/Materials | Core integrity fell below 20% 13225 | -8/Materials | Lost 6 parts (1p2u3w) 13476 | -8/Materials | Build established: Scavenger-Mutant 13712 | -8/Materials | Sterilization system engaged 13712 | -8/Materials | Non-combat units ordered to evacuate 13763 | -8/Materials | Destroyed by H-61 Shepherd with Heavy Assault Cannon Last Messages --------------- 13614_ System corrupted: Component data lost. 13637_ System corrupted: Carbon-fiber Leg fused. 13652_ System corrupted: Heat flow error (+169). 13664_ U-05 Engineer builds a Wall. 13669_ 0A8IXSDXZJ&CWR GW%20LM6 13669_ U-05 Engineer builds a Wall. 13686_ K-01 Serf cleans the Atomic Centrifuge. 13687_ System corrupted: Matter fused (-7). 13691_ K-01 Serf cleans the Atomic Centrifuge. 13703_ Katana follow-up attack on Y-45 Defender. 13709_ K-01 Serf cleans the Atomic Centrifuge. 13711_ U-05 Engineer builds a Wall. 13711_ Y-45 Defender destroyed. 13712_ ALERT: Persistent threat exposed, engaging Materials sterilization system. 13712_ ALERT: All non-combat units evacuate. 13717_ Acquired 50 matter. 13720_ System corrupted: Heat flow error (+123). 13754_ O-24 Administrator: "IFF HANDSHAKE FAILED. SECURING TERMINAL." 13755_ 5P BMU>J>JPETSZ%JYNNS + """ *# #?????## # | | ?????# @ # """ # #?????## | | ?????# # =# ####???# | | ?????# % ####### ## ##"##### | | ?????### ###?????#### # # | | ???????# #??????????# # # | | ???????# +??????????# # """ + | | ???????#^ #??????????# #= """ # | | ???????# #??????????# # """ # | | ???????# #??????????# # # | | ???????# #??????????# #####+## | | ???????# #??????????? ????# | | ???????# #???????????w????# | | ???????# #??????????? ????# | | ??????? H]?????????### ##### | | ????????! ????????+ | | ???????? ?????????###### ####### | | ?????????????????????????#???????? | | ??????????????????????????????#### | | ??????????????????????????????# | | ??????????????????????????????# "" | | ??????????????????????????????# "T | | ??????????????????????????????# "" | | ??????????????????????????????# | | ??????????????????????????######## | | ??????????????????????????# | +----------------------------------------------------+ Best States ------------- Heat Dissipation 51 Energy Generation 14 Energy Capacity 265 Matter Stores 300 Matter Capacity 300 Sight Range 16 Terrain Scan Density 10 Base Temperature (-) 100 Armor Coverage 375 Evasion (%) 55 Targeting Accuracy 6 Recoil Reduction 2 Authchip Count 1 Item Schematics ----------------- None Robot Schematics ------------------ None Fabricated ------------ Nothing Alien Tech Used ----------------- None Achievements -------------- None Challenges ------------ None Game ------ Seed TractorSchematicPlatform Manual? 0 Play Time 00:59:04 Cumulative 123.5 hours Start 2024.11.20 @ 10:23:31 End 2024.11.20 @ 15:29:59 Sessions 1 Manual Loads 0 Difficulty Rogue Special Mode None Game No. 228 Rogue 228 Adventurer 0 Explorer 0 Win Type - Total 0 Types 0/0/0/0/0/0/0/0/0 Lore% 43 Gallery% 40 Achievement% 36 Wizard Run 0 Options --------- Layout 0 ASCII 0 Keyboard 0 Movement Mouse Keybinds 0 Fullscreen 1 Font 24/Smallcaps Map View 91x25 Zoom Use 93% Tactical HUD 1 Map Filters NONE Filters NONE Steam 1 RUN: 37dc2d02-5ec7-4a93-9c98-be72ffc79f72